[Event "Late-Titled-Tuesday-Blitz-March-19-2024"]
[Site "Chess.com"]
[Date "2024.03.19"]
[Round "3"]
[White "ilushka"]
[Black "BrandonJiang123456"]
[Result "0-1"]
[WhiteElo "2380"]
[BlackElo "2164"]
[TimeControl "180+1"]
[EndTime "14:29:18 PDT"]
[Termination "BrandonJiang123456 won on time"]

1. e4 {[%clk 0:03:00.9]} 1... e5 {[%clk 0:02:59.6]} 2. Nf3 {[%clk 0:03:01.4]}
2... Nc6 {[%clk 0:02:59.4]} 3. Bb5 {[%clk 0:03:01.9]} 3... f5 {[%clk 0:02:58.7]}
4. d3 {[%clk 0:02:50.1]} 4... fxe4 {[%clk 0:02:58.1]} 5. dxe4 {[%clk 0:02:50.3]}
5... Nf6 {[%clk 0:02:56.7]} 6. O-O {[%clk 0:02:49.5]} 6... Bc5 {[%clk
0:02:47.4]} 7. Bc4 {[%clk 0:02:43.1]} 7... Qe7 {[%clk 0:02:45]} 8. Nc3 {[%clk
0:02:41.9]} 8... d6 {[%clk 0:02:43.3]} 9. Bg5 {[%clk 0:02:38.8]} 9... Be6 {[%clk
0:02:42.8]} 10. Nd5 {[%clk 0:02:31.3]} 10... Bxd5 {[%clk 0:02:35.9]} 11. exd5
{[%clk 0:02:31.4]} 11... Nd8 {[%clk 0:02:35]} 12. Bb5+ {[%clk 0:02:26.7]} 12...
c6 {[%clk 0:02:25.7]} 13. dxc6 {[%clk 0:02:26.5]} 13... bxc6 {[%clk 0:02:25.4]}
14. Bc4 {[%clk 0:02:26]} 14... Ne6 {[%clk 0:02:23.1]} 15. Bh4 {[%clk 0:02:15]}
15... h6 {[%clk 0:02:18.3]} 16. c3 {[%clk 0:02:11]} 16... d5 {[%clk 0:02:16.2]}
17. Bb3 {[%clk 0:02:08.3]} 17... e4 {[%clk 0:02:16.1]} 18. Nd4 {[%clk
0:02:04.6]} 18... Nxd4 {[%clk 0:02:01.7]} 19. cxd4 {[%clk 0:02:05.5]} 19... Bd6
{[%clk 0:02:02.1]} 20. Ba4 {[%clk 0:02:03.8]} 20... Rc8 {[%clk 0:01:53.4]} 21.
Rc1 {[%clk 0:02:03.4]} 21... Qe6 {[%clk 0:01:29.6]} 22. Bxc6+ {[%clk 0:01:56.4]}
22... Rxc6 {[%clk 0:01:26.2]} 23. Rxc6 {[%clk 0:01:54.3]} 23... Bxh2+ {[%clk
0:01:26.6]} 24. Kxh2 {[%clk 0:01:54.2]} 24... Qxc6 {[%clk 0:01:26.7]} 25. Bxf6
{[%clk 0:01:51.2]} 25... Qxf6 {[%clk 0:01:25.1]} 26. Qh5+ {[%clk 0:01:51.7]}
26... Qf7 {[%clk 0:01:25.1]} 27. Qe5+ {[%clk 0:01:49.4]} 27... Kd7 {[%clk
0:01:24.2]} 28. Rc1 {[%clk 0:01:48.4]} 28... Rc8 {[%clk 0:01:23.9]} 29. Rxc8
{[%clk 0:01:41]} 29... Kxc8 {[%clk 0:01:23.6]} 30. b4 {[%clk 0:01:40.2]} 30...
Qxf2 {[%clk 0:01:21.1]} 31. Qe6+ {[%clk 0:01:23.5]} 31... Kc7 {[%clk 0:01:17.8]}
32. Qe7+ {[%clk 0:01:22.2]} 32... Kc8 {[%clk 0:01:01.3]} 33. Qc5+ {[%clk
0:01:20.5]} 33... Kb8 {[%clk 0:01:01.1]} 34. Qd6+ {[%clk 0:01:10.7]} 34... Kc8
{[%clk 0:01:00.3]} 35. Qe6+ {[%clk 0:01:09.6]} 35... Kb8 {[%clk 0:00:59.2]} 36.
Qg8+ {[%clk 0:01:08.3]} 36... Kc7 {[%clk 0:00:45.7]} 37. Qxg7+ {[%clk
0:01:07.3]} 37... Kb6 {[%clk 0:00:46.2]} 38. Qxh6+ {[%clk 0:00:56.2]} 38... Kb5
{[%clk 0:00:46.3]} 39. Qd6 {[%clk 0:00:20.9]} 39... Qxd4 {[%clk 0:00:35.8]} 40.
g4 {[%clk 0:00:18.7]} 40... e3 {[%clk 0:00:27.1]} 41. Qe6 {[%clk 0:00:15.6]}
41... Qd2+ {[%clk 0:00:21.1]} 42. Kg1 {[%clk 0:00:12]} 42... e2 {[%clk
0:00:19.8]} 43. Qd7+ {[%clk 0:00:11.3]} 43... Kxb4 {[%clk 0:00:19.7]} 44. Qd6+
{[%clk 0:00:11.5]} 44... Kc3 {[%clk 0:00:18.5]} 45. Qa3+ {[%clk 0:00:11.1]}
45... Kd4 {[%clk 0:00:17.2]} 46. Qxa7+ {[%clk 0:00:10.8]} 46... Ke4 {[%clk
0:00:16.7]} 47. Qe7+ {[%clk 0:00:10.1]} 47... Kd3 {[%clk 0:00:16.7]} 48. Qh7+
{[%clk 0:00:08.2]} 48... Kc3 {[%clk 0:00:13.4]} 49. Qc7+ {[%clk 0:00:07.9]}
49... Kb2 {[%clk 0:00:13.4]} 50. Qb6+ {[%clk 0:00:07.2]} 50... Kc1 {[%clk
0:00:13.2]} 51. Qc6+ {[%clk 0:00:05.7]} 51... Kd1 {[%clk 0:00:10.7]} 52. Qa4+
{[%clk 0:00:06.3]} 52... Qc2 {[%clk 0:00:10.7]} 53. Qd4+ {[%clk 0:00:06.3]}
53... Kc1 {[%clk 0:00:09.5]} 54. Qe3+ {[%clk 0:00:05.6]} 54... Qd2 {[%clk
0:00:09]} 55. Qa3+ {[%clk 0:00:05.5]} 55... Kb1 {[%clk 0:00:08.8]} 56. Qb3+
{[%clk 0:00:04.7]} 56... Ka1 {[%clk 0:00:08.8]} 57. Qc3+ {[%clk 0:00:01.1]}
57... Qxc3 {[%clk 0:00:07.9]} 0-1

[Event "Late-Titled-Tuesday-Blitz-March-19-2024"]
[Site "Chess.com"]
[Date "2024.03.19"]
[Round "3"]
[White "SRob2003"]
[Black "maksimys18"]
[Result "0-1"]
[WhiteElo "2680"]
[BlackElo "2521"]
[TimeControl "180+1"]
[EndTime "14:29:23 PDT"]
[Termination "maksimys18 won by checkmate"]

1. c4 {[%clk 0:03:00.9]} 1... e6 {[%clk 0:02:59.9]} 2. g3 {[%clk 0:03:01.4]}
2... d5 {[%clk 0:02:59.7]} 3. Bg2 {[%clk 0:03:02.1]} 3... Nf6 {[%clk 0:02:59.6]}
4. Nf3 {[%clk 0:03:02.8]} 4... Be7 {[%clk 0:02:59.4]} 5. O-O {[%clk 0:03:03.5]}
5... O-O {[%clk 0:02:59.5]} 6. b3 {[%clk 0:03:04]} 6... b6 {[%clk 0:02:59.4]} 7.
Bb2 {[%clk 0:03:04.4]} 7... Bb7 {[%clk 0:02:59.4]} 8. e3 {[%clk 0:03:04.5]} 8...
Nbd7 {[%clk 0:02:59.4]} 9. Nc3 {[%clk 0:03:04.4]} 9... dxc4 {[%clk 0:02:59.3]}
10. bxc4 {[%clk 0:03:05.3]} 10... c5 {[%clk 0:02:58.4]} 11. d4 {[%clk
0:03:03.5]} 11... cxd4 {[%clk 0:02:58]} 12. exd4 {[%clk 0:03:03.5]} 12... Rc8
{[%clk 0:02:57.9]} 13. Qe2 {[%clk 0:02:53.3]} 13... Ba6 {[%clk 0:02:49]} 14. Nd2
{[%clk 0:02:50.1]} 14... Re8 {[%clk 0:02:39.5]} 15. Nb5 {[%clk 0:02:46]} 15...
Bxb5 {[%clk 0:02:38.8]} 16. cxb5 {[%clk 0:02:46.9]} 16... Nd5 {[%clk 0:02:36.2]}
17. Rac1 {[%clk 0:02:45.8]} 17... Rxc1 {[%clk 0:02:35.1]} 18. Rxc1 {[%clk
0:02:46.7]} 18... N7f6 {[%clk 0:02:35.2]} 19. Nf3 {[%clk 0:02:36.7]} 19... Bd6
{[%clk 0:02:31.8]} 20. Ne5 {[%clk 0:02:36]} 20... Bxe5 {[%clk 0:02:31.4]} 21.
dxe5 {[%clk 0:02:36.9]} 21... Nd7 {[%clk 0:02:26.9]} 22. Bxd5 {[%clk 0:02:07.6]}
22... exd5 {[%clk 0:02:26]} 23. Qg4 {[%clk 0:02:08.5]} 23... Nc5 {[%clk
0:02:15.6]} 24. Rd1 {[%clk 0:02:02.5]} 24... Ne6 {[%clk 0:01:57.2]} 25. Qf3
{[%clk 0:01:51.3]} 25... d4 {[%clk 0:01:42.8]} 26. Qc6 {[%clk 0:01:45.9]} 26...
d3 {[%clk 0:01:32.3]} 27. Qc4 {[%clk 0:01:28.8]} 27... Nc5 {[%clk 0:01:30.1]}
28. Bd4 {[%clk 0:01:28.3]} 28... Qe7 {[%clk 0:00:48]} 29. Bxc5 {[%clk
0:01:26.4]} 29... bxc5 {[%clk 0:00:47.8]} 30. f4 {[%clk 0:01:22.8]} 30... h5
{[%clk 0:00:43.6]} 31. Rxd3 {[%clk 0:01:20.5]} 31... h4 {[%clk 0:00:43.7]} 32.
Rd5 {[%clk 0:01:17.5]} 32... hxg3 {[%clk 0:00:43.3]} 33. hxg3 {[%clk 0:01:18.4]}
33... Qe6 {[%clk 0:00:42.2]} 34. Qxc5 {[%clk 0:00:56.7]} 34... Rc8 {[%clk
0:00:40.1]} 35. Qd4 {[%clk 0:00:33.5]} 35... Rc1+ {[%clk 0:00:40]} 36. Kf2
{[%clk 0:00:32.7]} 36... Qh3 {[%clk 0:00:36.4]} 37. Rd8+ {[%clk 0:00:26.7]}
37... Kh7 {[%clk 0:00:35.9]} 38. Qd3+ {[%clk 0:00:26.8]} 38... g6 {[%clk
0:00:35.6]} 39. Rd7 {[%clk 0:00:13.5]} 39... Qh2+ {[%clk 0:00:34.1]} 40. Kf3
{[%clk 0:00:13.8]} 40... Qh1+ {[%clk 0:00:34.1]} 41. Ke3 {[%clk 0:00:10.3]}
41... Re1+ {[%clk 0:00:33.6]} 42. Kd4 {[%clk 0:00:09.3]} 42... Rd1 {[%clk
0:00:33.3]} 43. Rxf7+ {[%clk 0:00:09.4]} 43... Kg8 {[%clk 0:00:32.9]} 44. Rf6
{[%clk 0:00:04.7]} 44... Rxd3+ {[%clk 0:00:32.5]} 45. Kxd3 {[%clk 0:00:05.3]}
45... Qf3+ {[%clk 0:00:32.1]} 46. Kd4 {[%clk 0:00:05.1]} 46... Qxg3 {[%clk
0:00:32.6]} 47. Kd5 {[%clk 0:00:04.9]} 47... Qd3+ {[%clk 0:00:32.1]} 48. Kc6
{[%clk 0:00:04.5]} 48... Kg7 {[%clk 0:00:30.3]} 49. a4 {[%clk 0:00:03.9]} 49...
Qc4+ {[%clk 0:00:29.6]} 50. Kd6 {[%clk 0:00:02.3]} 50... Qxa4 {[%clk 0:00:29.7]}
51. Kc5 {[%clk 0:00:01.6]} 51... Qc2+ {[%clk 0:00:29.3]} 52. Kb4 {[%clk
0:00:01.7]} 52... Qe4+ {[%clk 0:00:29.4]} 53. Kc5 {[%clk 0:00:02.1]} 53... g5
{[%clk 0:00:26.8]} 54. fxg5 {[%clk 0:00:02.2]} 54... Qxe5+ {[%clk 0:00:26.7]}
55. Kb4 {[%clk 0:00:02.9]} 55... Qxg5 {[%clk 0:00:26.4]} 56. Rc6 {[%clk
0:00:03.7]} 56... Qe3 {[%clk 0:00:25.8]} 57. Rc7+ {[%clk 0:00:02.5]} 57... Kf6
{[%clk 0:00:26]} 58. Rc6+ {[%clk 0:00:03.3]} 58... Ke5 {[%clk 0:00:26.2]} 59.
Ka4 {[%clk 0:00:03.7]} 59... Kd5 {[%clk 0:00:25.8]} 60. Kb4 {[%clk 0:00:04.2]}
60... Qe2 {[%clk 0:00:25.8]} 61. Rc5+ {[%clk 0:00:03.8]} 61... Kd4 {[%clk
0:00:25.7]} 62. Rc6 {[%clk 0:00:04.1]} 62... Qb2+ {[%clk 0:00:25.7]} 63. Ka4
{[%clk 0:00:04.7]} 63... Kd5 {[%clk 0:00:25.4]} 64. Rc7 {[%clk 0:00:01.6]} 64...
Qd4+ {[%clk 0:00:25.4]} 65. Kb3 {[%clk 0:00:01.3]} 65... Qe3+ {[%clk 0:00:25.6]}
66. Kb4 {[%clk 0:00:02.2]} 66... Qf4+ {[%clk 0:00:25.6]} 67. Ka5 {[%clk
0:00:02.3]} 67... Qxc7+ {[%clk 0:00:25.9]} 68. Ka6 {[%clk 0:00:03.2]} 68... Qb6#
{[%clk 0:00:25.6]} 0-1

[Event "Late-Titled-Tuesday-Blitz-March-19-2024"]
[Site "Chess.com"]
[Date "2024.03.19"]
[Round "3"]
[White "Alexei_Gubajdullin"]
[Black "DucksParadise"]
[Result "0-1"]
[WhiteElo "2646"]
[BlackElo "2505"]
[TimeControl "180+1"]
[EndTime "14:29:26 PDT"]
[Termination "DucksParadise won on time"]

1. d4 {[%clk 0:02:59.8]} 1... Nf6 {[%clk 0:02:58.4]} 2. Nf3 {[%clk 0:02:58.5]}
2... d5 {[%clk 0:02:58.2]} 3. Bf4 {[%clk 0:02:58.2]} 3... c5 {[%clk 0:02:56.7]}
4. e3 {[%clk 0:02:58]} 4... Nc6 {[%clk 0:02:55.1]} 5. Nbd2 {[%clk 0:02:58.3]}
5... Nh5 {[%clk 0:02:54.7]} 6. Be5 {[%clk 0:02:57.1]} 6... cxd4 {[%clk
0:02:42.9]} 7. Bxd4 {[%clk 0:02:54]} 7... Nxd4 {[%clk 0:02:39.3]} 8. Nxd4 {[%clk
0:02:53.4]} 8... Nf6 {[%clk 0:02:38.1]} 9. Bb5+ {[%clk 0:02:53]} 9... Bd7 {[%clk
0:02:37.7]} 10. c4 {[%clk 0:02:52.8]} 10... Bxb5 {[%clk 0:02:34]} 11. Nxb5
{[%clk 0:02:49.6]} 11... a6 {[%clk 0:02:34]} 12. Nc3 {[%clk 0:02:47.2]} 12... e6
{[%clk 0:02:27]} 13. O-O {[%clk 0:02:43.7]} 13... Be7 {[%clk 0:02:25.2]} 14. Qb3
{[%clk 0:02:40.6]} 14... dxc4 {[%clk 0:02:21.6]} 15. Nxc4 {[%clk 0:02:39.6]}
15... b5 {[%clk 0:02:17.8]} 16. Rfd1 {[%clk 0:02:30.3]} 16... Qc7 {[%clk
0:02:14]} 17. Nxb5 {[%clk 0:02:26.1]} 17... axb5 {[%clk 0:02:13.6]} 18. Qxb5+
{[%clk 0:02:25.9]} 18... Nd7 {[%clk 0:02:12.5]} 19. a4 {[%clk 0:02:12.1]} 19...
Rd8 {[%clk 0:02:02]} 20. a5 {[%clk 0:01:48.6]} 20... O-O {[%clk 0:01:59.2]} 21.
b4 {[%clk 0:01:44.2]} 21... Nf6 {[%clk 0:01:48.4]} 22. Nb6 {[%clk 0:01:40.5]}
22... Rxd1+ {[%clk 0:01:40.8]} 23. Rxd1 {[%clk 0:01:39.9]} 23... Rd8 {[%clk
0:01:39.4]} 24. Rxd8+ {[%clk 0:01:25.7]} 24... Bxd8 {[%clk 0:01:37.5]} 25. Nc4
{[%clk 0:01:10.1]} 25... Kf8 {[%clk 0:01:26.4]} 26. g3 {[%clk 0:01:06.5]} 26...
Ke7 {[%clk 0:01:18.9]} 27. a6 {[%clk 0:01:05.4]} 27... Nd5 {[%clk 0:01:13.9]}
28. Kg2 {[%clk 0:00:47.2]} 28... Nc3 {[%clk 0:00:56.1]} 29. Qc5+ {[%clk
0:00:35.4]} 29... Qxc5 {[%clk 0:00:55.1]} 30. bxc5 {[%clk 0:00:35.3]} 30... Nb5
{[%clk 0:00:52.4]} 31. c6 {[%clk 0:00:33]} 31... Bc7 {[%clk 0:00:47.4]} 32. f4
{[%clk 0:00:25.1]} 32... Na7 {[%clk 0:00:45.8]} 33. Kf3 {[%clk 0:00:21.6]} 33...
Nxc6 {[%clk 0:00:45.5]} 34. Ke4 {[%clk 0:00:20.1]} 34... f5+ {[%clk 0:00:44.5]}
35. Kf3 {[%clk 0:00:18.8]} 35... Kd8 {[%clk 0:00:38.2]} 36. e4 {[%clk
0:00:14.1]} 36... Kc8 {[%clk 0:00:36.6]} 37. exf5 {[%clk 0:00:13.3]} 37... exf5
{[%clk 0:00:37.5]} 38. h4 {[%clk 0:00:08.2]} 38... Kb8 {[%clk 0:00:36.5]} 39. h5
{[%clk 0:00:08.1]} 39... Ka7 {[%clk 0:00:36.4]} 40. Ne3 {[%clk 0:00:07.6]} 40...
Nd4+ {[%clk 0:00:34.5]} 41. Kg2 {[%clk 0:00:06.3]} 41... Kxa6 {[%clk 0:00:34.6]}
42. Kh3 {[%clk 0:00:05.4]} 42... Kb5 {[%clk 0:00:33.5]} 43. h6 {[%clk
0:00:05.4]} 43... g6 {[%clk 0:00:21.1]} 44. Nd5 {[%clk 0:00:03.8]} 44... Bd8
{[%clk 0:00:20.5]} 45. g4 {[%clk 0:00:03.9]} 45... Kc6 {[%clk 0:00:17.4]} 46.
Ne3 {[%clk 0:00:02.9]} 46... Kd6 {[%clk 0:00:13.4]} 47. Nc4+ {[%clk 0:00:02.8]}
47... Ke6 {[%clk 0:00:12.8]} 48. Ne5 {[%clk 0:00:03.1]} 48... Bf6 {[%clk
0:00:08.5]} 49. Nf3 {[%clk 0:00:03.1]} 49... fxg4+ {[%clk 0:00:07.6]} 50. Kxg4
{[%clk 0:00:03]} 50... Nf5 {[%clk 0:00:08.5]} 51. Kh3 {[%clk 0:00:02.1]} 51...
Nxh6 {[%clk 0:00:08.5]} 52. Nd2 {[%clk 0:00:01.8]} 52... Kf5 {[%clk 0:00:08]}
53. Kg3 {[%clk 0:00:01.3]} 53... Nf7 {[%clk 0:00:08.2]} 54. Nc4 {[%clk
0:00:01.2]} 54... g5 {[%clk 0:00:07.2]} 55. fxg5 {[%clk 0:00:01.2]} 55... Kxg5
{[%clk 0:00:07.6]} 56. Kh3 {[%clk 0:00:01.3]} 56... Be5 {[%clk 0:00:06.6]} 57.
Ne3 {[%clk 0:00:01.3]} 57... h5 {[%clk 0:00:06.1]} 58. Nd5 {[%clk 0:00:01.5]}
58... Bd6 {[%clk 0:00:05.6]} 0-1

[Event "Late-Titled-Tuesday-Blitz-March-19-2024"]
[Site "Chess.com"]
[Date "2024.03.19"]
[Round "3"]
[White "cthulhuuu"]
[Black "stolencandy13"]
[Result "1/2-1/2"]
[WhiteElo "2416"]
[BlackElo "2548"]
[TimeControl "180+1"]
[EndTime "14:29:26 PDT"]
[Termination "Game drawn - insufficient material"]

1. e4 {[%clk 0:03:00.1]} 1... c6 {[%clk 0:03:00.3]} 2. d3 {[%clk 0:02:56.3]}
2... d5 {[%clk 0:03:01.2]} 3. Nd2 {[%clk 0:02:56.4]} 3... e5 {[%clk 0:03:01.1]}
4. Ngf3 {[%clk 0:02:57.1]} 4... Bd6 {[%clk 0:03:00.5]} 5. d4 {[%clk 0:02:57.7]}
5... exd4 {[%clk 0:03:00.1]} 6. exd5 {[%clk 0:02:58.6]} 6... cxd5 {[%clk
0:03:01]} 7. Nxd4 {[%clk 0:02:59]} 7... Nf6 {[%clk 0:03:01.7]} 8. Bb5+ {[%clk
0:02:59.3]} 8... Bd7 {[%clk 0:03:01.5]} 9. Qe2+ {[%clk 0:02:59.6]} 9... Qe7
{[%clk 0:03:01]} 10. Qxe7+ {[%clk 0:02:51.3]} 10... Bxe7 {[%clk 0:03:01]} 11.
O-O {[%clk 0:02:50.4]} 11... O-O {[%clk 0:03:00.5]} 12. Re1 {[%clk 0:02:41]}
12... Bd6 {[%clk 0:02:56.7]} 13. N2b3 {[%clk 0:02:41.2]} 13... a6 {[%clk
0:02:55.6]} 14. Bd3 {[%clk 0:02:38.8]} 14... Nc6 {[%clk 0:02:54.6]} 15. Nxc6
{[%clk 0:02:22.4]} 15... bxc6 {[%clk 0:02:54.4]} 16. Be3 {[%clk 0:02:22]} 16...
a5 {[%clk 0:02:52.1]} 17. Bc5 {[%clk 0:02:18.8]} 17... Bxc5 {[%clk 0:02:28.6]}
18. Nxc5 {[%clk 0:02:19.7]} 18... Bc8 {[%clk 0:02:28.7]} 19. a4 {[%clk
0:02:19.5]} 19... Nd7 {[%clk 0:02:27.3]} 20. Nxd7 {[%clk 0:02:11]} 20... Bxd7
{[%clk 0:02:28.2]} 21. Re7 {[%clk 0:02:10.7]} 21... Be6 {[%clk 0:02:24.8]} 22.
f4 {[%clk 0:02:09.9]} 22... g6 {[%clk 0:02:19]} 23. Kf2 {[%clk 0:01:47.5]} 23...
Rab8 {[%clk 0:02:13.9]} 24. b3 {[%clk 0:01:46.4]} 24... c5 {[%clk 0:02:14.4]}
25. Bb5 {[%clk 0:01:40.4]} 25... c4 {[%clk 0:02:08]} 26. bxc4 {[%clk 0:01:22.1]}
26... dxc4 {[%clk 0:02:05.9]} 27. Rd1 {[%clk 0:01:22.1]} 27... Rfd8 {[%clk
0:01:58.4]} 28. Rxd8+ {[%clk 0:01:21.9]} 28... Rxd8 {[%clk 0:01:59.3]} 29. Re8+
{[%clk 0:01:22.4]} 29... Rxe8 {[%clk 0:01:57.5]} 30. Bxe8 {[%clk 0:01:22.2]}
30... Kf8 {[%clk 0:01:45.9]} 31. Bb5 {[%clk 0:01:19.7]} 31... Ke7 {[%clk
0:01:41.2]} 32. Ke3 {[%clk 0:01:17.3]} 32... Kd6 {[%clk 0:01:20.9]} 33. Kd4
{[%clk 0:01:17.3]} 33... c3 {[%clk 0:01:21.4]} 34. Kxc3 {[%clk 0:01:15.9]} 34...
Kc5 {[%clk 0:01:22]} 35. h4 {[%clk 0:01:06.8]} 35... h6 {[%clk 0:01:20.6]} 36.
Be2 {[%clk 0:00:39]} 36... f6 {[%clk 0:01:15.5]} 37. Bb5 {[%clk 0:00:19.6]}
37... g5 {[%clk 0:01:11.6]} 38. fxg5 {[%clk 0:00:17]} 38... fxg5 {[%clk
0:01:11.7]} 39. hxg5 {[%clk 0:00:17.4]} 39... hxg5 {[%clk 0:01:12.6]} 40. g3
{[%clk 0:00:17.9]} 40... Bf5 {[%clk 0:01:11.6]} 41. Kd2 {[%clk 0:00:15.8]} 41...
Be6 {[%clk 0:01:07.1]} 42. c3 {[%clk 0:00:14.9]} 42... Bb3 {[%clk 0:01:07.1]}
43. Ke3 {[%clk 0:00:14.3]} 43... Bc2 {[%clk 0:01:05.4]} 44. Bd7 {[%clk
0:00:12.2]} 44... Kc4 {[%clk 0:01:00.3]} 45. Kd2 {[%clk 0:00:11.9]} 45... Be4
{[%clk 0:00:59.2]} 46. Bb5+ {[%clk 0:00:11.5]} 46... Kc5 {[%clk 0:00:58]} 47.
Ke3 {[%clk 0:00:11.9]} 47... Bb1 {[%clk 0:00:55.8]} 48. Kf3 {[%clk 0:00:12.2]}
48... Bf5 {[%clk 0:00:52.5]} 49. Ke3 {[%clk 0:00:12.6]} 49... Kd5 {[%clk
0:00:51.6]} 50. c4+ {[%clk 0:00:11.6]} 50... Kc5 {[%clk 0:00:50.1]} 51. Kf3
{[%clk 0:00:11]} 51... Bd3 {[%clk 0:00:47.6]} 52. Kg4 {[%clk 0:00:10.1]} 52...
Bxc4 {[%clk 0:00:44.9]} 53. Bxc4 {[%clk 0:00:09]} 53... Kxc4 {[%clk 0:00:45.8]}
54. Kxg5 {[%clk 0:00:09.4]} 54... Kb4 {[%clk 0:00:46.7]} 55. Kf5 {[%clk
0:00:09.9]} 55... Kxa4 {[%clk 0:00:46.8]} 56. g4 {[%clk 0:00:10.5]} 56... Kb4
{[%clk 0:00:40.4]} 57. g5 {[%clk 0:00:11.4]} 57... a4 {[%clk 0:00:41.3]} 58. g6
{[%clk 0:00:11.8]} 58... a3 {[%clk 0:00:41.7]} 59. g7 {[%clk 0:00:12.2]} 59...
a2 {[%clk 0:00:42]} 60. g8=Q {[%clk 0:00:12.5]} 60... a1=Q {[%clk 0:00:42.4]}
61. Qb8+ {[%clk 0:00:12]} 61... Kc4 {[%clk 0:00:41.6]} 62. Qc7+ {[%clk
0:00:11.8]} 62... Kd3 {[%clk 0:00:41.3]} 63. Qd6+ {[%clk 0:00:11.6]} 63... Kc2
{[%clk 0:00:38]} 64. Qc5+ {[%clk 0:00:11.1]} 64... Kd2 {[%clk 0:00:34.5]} 65.
Qd5+ {[%clk 0:00:10.7]} 65... Kc2 {[%clk 0:00:31.5]} 66. Qe4+ {[%clk 0:00:10.7]}
66... Kb3 {[%clk 0:00:27.5]} 67. Qd5+ {[%clk 0:00:10.6]} 67... Kb4 {[%clk
0:00:22.1]} 68. Qd6+ {[%clk 0:00:10.4]} 68... Kb5 {[%clk 0:00:20.2]} 69. Qe5+
{[%clk 0:00:10.3]} 69... Qxe5+ {[%clk 0:00:19.5]} 70. Kxe5 {[%clk 0:00:11.2]}
1/2-1/2

[Event "Late-Titled-Tuesday-Blitz-March-19-2024"]
[Site "Chess.com"]
[Date "2024.03.19"]
[Round "3"]
[White "profedechess93"]
[Black "Misterfox120"]
[Result "1/2-1/2"]
[WhiteElo "2638"]
[BlackElo "2457"]
[TimeControl "180+1"]
[EndTime "14:29:27 PDT"]
[Termination "Game drawn by repetition"]

1. e4 {[%clk 0:02:57.4]} 1... c6 {[%clk 0:02:59.2]} 2. d4 {[%clk 0:02:57.1]}
2... d5 {[%clk 0:03:00.1]} 3. Nc3 {[%clk 0:02:56.6]} 3... dxe4 {[%clk
0:03:00.2]} 4. Nxe4 {[%clk 0:02:57.5]} 4... Nf6 {[%clk 0:03:00.9]} 5. Nxf6+
{[%clk 0:02:57.7]} 5... exf6 {[%clk 0:03:01.8]} 6. c3 {[%clk 0:02:58.2]} 6...
Bd6 {[%clk 0:03:02.1]} 7. Bd3 {[%clk 0:02:57.8]} 7... O-O {[%clk 0:03:02.8]} 8.
Qc2 {[%clk 0:02:58.2]} 8... Re8+ {[%clk 0:03:03.1]} 9. Ne2 {[%clk 0:02:59]} 9...
h5 {[%clk 0:03:00.1]} 10. Be3 {[%clk 0:02:59.4]} 10... Nd7 {[%clk 0:02:59.2]}
11. O-O-O {[%clk 0:02:59.9]} 11... Nf8 {[%clk 0:02:57]} 12. h3 {[%clk
0:03:00.4]} 12... Be6 {[%clk 0:02:54.1]} 13. g4 {[%clk 0:03:00.8]} 13... Bd5
{[%clk 0:02:51.3]} 14. Rhg1 {[%clk 0:03:00.4]} 14... h4 {[%clk 0:02:47.2]} 15.
g5 {[%clk 0:03:00.4]} 15... Bh2 {[%clk 0:02:43.9]} 16. gxf6 {[%clk 0:02:16.4]}
16... Qxf6 {[%clk 0:02:27.6]} 17. Rge1 {[%clk 0:02:10.5]} 17... b5 {[%clk
0:02:04.2]} 18. Kb1 {[%clk 0:02:08.7]} 18... a5 {[%clk 0:01:58.7]} 19. Qd2
{[%clk 0:02:00.7]} 19... a4 {[%clk 0:01:45.6]} 20. Nf4 {[%clk 0:01:49.2]} 20...
Be4 {[%clk 0:01:22.4]} 21. Bxe4 {[%clk 0:00:58.5]} 21... Rxe4 {[%clk 0:01:23.3]}
22. Nd3 {[%clk 0:00:59.2]} 22... Qf5 {[%clk 0:01:14.5]} 23. Ka1 {[%clk
0:00:55.3]} 23... Bd6 {[%clk 0:01:04.4]} 24. Rh1 {[%clk 0:00:53.4]} 24... Ng6
{[%clk 0:00:58.9]} 25. Qc2 {[%clk 0:00:51.7]} 25... Rae8 {[%clk 0:00:48]} 26.
Nc5 {[%clk 0:00:49.8]} 26... Bxc5 {[%clk 0:00:45.3]} 27. dxc5 {[%clk 0:00:50.7]}
27... R8e6 {[%clk 0:00:34]} 28. Rd8+ {[%clk 0:00:43.7]} 28... Kh7 {[%clk
0:00:31.9]} 29. Qd1 {[%clk 0:00:42.8]} 29... Ne5 {[%clk 0:00:23.6]} 30. Rg1
{[%clk 0:00:38.4]} 30... Nc4 {[%clk 0:00:15.4]} 31. Bd4 {[%clk 0:00:26.3]} 31...
f6 {[%clk 0:00:15.8]} 32. a3 {[%clk 0:00:15.4]} 32... Re2 {[%clk 0:00:14.7]} 33.
Rd7 {[%clk 0:00:14.1]} 33... Re7 {[%clk 0:00:11.3]} 34. Rxe7 {[%clk 0:00:13]}
34... Rxe7 {[%clk 0:00:12.2]} 35. f4 {[%clk 0:00:10.1]} 35... Re4 {[%clk
0:00:12]} 36. Qd3 {[%clk 0:00:07.7]} 36... Rxf4 {[%clk 0:00:11.1]} 37. Qd1
{[%clk 0:00:07.4]} 37... Rf3 {[%clk 0:00:10]} 38. Qe1 {[%clk 0:00:07.3]} 38...
Ne5 {[%clk 0:00:06.2]} 39. Qxh4+ {[%clk 0:00:06.8]} 39... Kg8 {[%clk 0:00:05.5]}
40. Qe1 {[%clk 0:00:05.8]} 40... Nd3 {[%clk 0:00:03.9]} 41. Qe8+ {[%clk
0:00:05.2]} 41... Kh7 {[%clk 0:00:04.4]} 42. Qe2 {[%clk 0:00:04.3]} 42... Ne5
{[%clk 0:00:02.8]} 43. Bxe5 {[%clk 0:00:04.2]} 43... fxe5 {[%clk 0:00:02.6]} 44.
h4 {[%clk 0:00:04.7]} 44... e4 {[%clk 0:00:03]} 45. h5 {[%clk 0:00:04.5]} 45...
e3 {[%clk 0:00:03.5]} 46. h6 {[%clk 0:00:04.1]} 46... gxh6 {[%clk 0:00:03.4]}
47. Qg2 {[%clk 0:00:04.5]} 47... Qf7 {[%clk 0:00:02.3]} 48. Qc2+ {[%clk
0:00:04.6]} 48... Kh8 {[%clk 0:00:02]} 49. Qd1 {[%clk 0:00:04.4]} 49... Rf2
{[%clk 0:00:02.3]} 50. Qd4+ {[%clk 0:00:04.4]} 50... Kh7 {[%clk 0:00:01.7]} 51.
Qe4+ {[%clk 0:00:04.5]} 51... Kh8 {[%clk 0:00:01.6]} 52. Qe5+ {[%clk 0:00:04.4]}
52... Kh7 {[%clk 0:00:01.9]} 53. Qe4+ {[%clk 0:00:04.7]} 53... Kh8 {[%clk
0:00:02.5]} 54. Re1 {[%clk 0:00:02.7]} 54... Rf1 {[%clk 0:00:02.7]} 55. Qe5+
{[%clk 0:00:03]} 55... Kh7 {[%clk 0:00:03]} 56. Qe4+ {[%clk 0:00:03.7]} 56...
Kh8 {[%clk 0:00:03.2]} 57. Qe5+ {[%clk 0:00:03.4]} 57... Kh7 {[%clk 0:00:03.5]}
58. Qxe3 {[%clk 0:00:03.5]} 58... Rxe1+ {[%clk 0:00:03.4]} 59. Qxe1 {[%clk
0:00:04.4]} 59... Qd5 {[%clk 0:00:03.7]} 60. Qe7+ {[%clk 0:00:04.2]} 60... Kg6
{[%clk 0:00:03.8]} 61. Qe8+ {[%clk 0:00:04.8]} 61... Kg7 {[%clk 0:00:03.9]} 62.
Qe7+ {[%clk 0:00:05]} 62... Kg6 {[%clk 0:00:04.3]} 63. Qe8+ {[%clk 0:00:05.4]}
63... Kg7 {[%clk 0:00:04.8]} 64. Qe7+ {[%clk 0:00:05.9]} 64... Kg6 {[%clk
0:00:05.2]} 1/2-1/2